bitfinex/quotes_SOLUSD_20250308
["timestamp","ask_amount","ask_price","bid_price","bid_amount"]
[1741410026293,13.21264181,141.35,141.29,147.75264181]
[1741410026488,13.18264181,141.34,141.29,134.57]
[1741410026689,31.83229067,141.3,141.25,0.033]
[1741410027103,13.18264181,141.29,141.25,0.033]
[1741410027617,7.0781,141.28,141.25,0.033]
[1741410027807,20.26074181,141.28,141.25,0.033]
[1741410028116,13.18264181,141.27,141.25,0.033]
[1741410029212,26.50074181,141.28,141.25,0.033]
[1741410029723,6.24,141.28,141.25,0.033]
[1741410030712,20.26034181,141.29,141.25,0.033]
[1741410030918,26.50034181,141.29,141.25,0.033]
[1741410031131,6.24,141.29,141.25,0.033]
[1741410031324,6.24,141.29,141.25,13.21564181]
[1741410031922,6.24,141.29,141.25,0.033]
[1741410032423,13.3177,141.29,141.25,0.033]
[1741410032628,26.50034181,141.29,141.25,0.033]
[1741410033630,13.3177,141.29,141.25,0.033]
[1741410033827,26.50034181,141.29,141.25,0.033]
[1741410034132,20.26034181,141.29,141.25,0.033]
[1741410034297,26.50034181,141.29,141.25,0.033]
[1741410036160,13.18264181,141.28,141.25,0.033]
[1741410036426,7.0786,141.27,141.25,0.033]
[1741410038927,20.26124181,141.27,141.25,0.033]
[1741410039109,31.83229067,141.26,141.25,0.033]
[1741410039308,81.83229067,141.26,141.25,0.033]
[1741410040226,88.91139067,141.26,141.25,0.033]
[1741410040538,88.91139067,141.26,141.25,0.0001]
[1741410040539,141.64195791,141.26,141.25,0.0001]
[1741410040706,50.0,141.23,141.22,0.033]
[1741410040912,88.07229067,141.23,141.22,0.033]
[1741410041106,88.07229067,141.23,141.22,0.0001]
[1741410042617,95.15289067,141.23,141.22,0.0001]
[1741410043005,103.45499067,141.23,141.22,0.0001]
[1741410043214,89.27288198,141.2,141.19,0.033]
[1741410044543,96.35498198,141.2,141.19,0.033]
[1741410045212,39.27288198,141.2,141.19,0.033]
[1741410046314,46.35498198,141.2,141.19,0.033]
[1741410046526,26.86323312,141.2,141.19,0.033]
[1741410047135,6.24,141.2,141.19,0.033]
[1741410047431,26.86323312,141.2,141.19,0.033]
[1741410048914,33.94533312,141.2,141.19,0.033]
[1741410049115,52.59498198,141.2,141.19,0.033]
[1741410050543,33.94533312,141.2,141.19,0.033]
[1741410050727,26.86323312,141.2,141.19,0.033]
[1741410051246,33.94533312,141.2,141.19,0.033]
[1741410052017,52.59498198,141.2,141.19,0.033]
[1741410052522,102.59498198,141.2,141.19,0.033]
[1741410054655,50.0,141.18,141.16,0.033]
[1741410054950,46.35648198,141.17,141.16,0.033]
[1741410063142,25.73324886,141.17,141.16,0.033]
[1741410063339,13.19946557,141.17,141.16,0.033]
[1741410063661,31.84911443,141.17,141.16,0.033]
[1741410064643,79.62076092,141.2,141.16,0.033]
[1741410064644,6.24,141.18,141.16,0.033]
[1741410065338,19.43946557,141.18,141.16,0.033]
[1741410065863,6.24,141.18,141.16,0.033]
[1741410067331,13.3217,141.21,141.16,147.80246557]
[1741410067535,45.17081443,141.21,141.16,134.603]
[1741410068152,19.43946557,141.21,141.16,147.80246557]
[1741410068447,26.52116557,141.21,141.16,147.80246557]
[1741410069062,13.3217,141.21,141.16,147.80246557]
[1741410069268,26.52116557,141.21,141.16,147.80246557]
[1741410069861,26.52116557,141.21,141.16,134.603]
[1741410073957,13.19946557,141.2,141.16,134.603]
[1741410074262,13.19946557,141.19,141.16,134.603]
[1741410074648,13.19946557,141.18,141.16,0.033]
[1741410074951,13.19946557,141.17,141.16,0.033]
[1741410075359,31.84911443,141.17,141.16,0.033]
[1741410076153,38.93271443,141.17,141.16,0.033]
[1741410077366,18.64964886,141.15,141.13,0.033]
[1741410077566,45.52074578,141.14,141.13,0.033]
[1741410077875,18.64964886,141.13,141.12,0.033]
[1741410078059,59.9118427,141.13,141.12,0.0001]
[1741410078246,46.36634578,141.13,141.12,0.0001]
[1741410078661,68.64964886,141.12,141.11,0.0001]
[1741410078864,109.9118427,141.12,141.11,0.0001]
[1741410079050,109.9118427,141.12,141.08,0.033]
[1741410079051,50.0,141.09,141.08,0.033]
[1741410079255,95.52074578,141.09,141.08,0.033]
[1741410079655,45.52074578,141.09,141.08,0.033]
[1741410079951,20.63109692,141.11,141.08,0.033]
[1741410080148,89.28074578,141.09,141.08,0.033]
[1741410080452,27.71869692,141.09,141.08,0.033]
[1741410080771,20.63109692,141.09,141.08,0.033]
[1741410081457,7.0872,141.1,141.08,0.033]
[1741410081458,20.63109692,141.1,141.08,0.033]
[1741410081767,20.63109692,141.09,141.08,0.033]
[1741410082173,39.28074578,141.09,141.08,0.033]
[1741410082356,96.36834578,141.09,141.08,0.033]
[1741410083058,46.36834578,141.09,141.08,0.033]
[1741410083465,96.36834578,141.09,141.08,0.033]
[1741410086059,18.64964886,141.06,141.0,129.1792]
[1741410086361,26.87109692,141.05,140.94,42.62684886]
[1741410086688,26.87109692,141.05,140.96,99.2352]
[1741410086862,6.24,141.05,141.01,20.63109692]
[1741410088391,6.24,141.05,141.01,27.72269692]
[1741410088764,20.63109692,141.08,141.02,20.63109692]
[1741410089084,6.26,141.07,141.02,20.63109692]
[1741410089282,26.89109692,141.07,141.01,162.32269692]
[1741410089469,20.63109692,141.06,141.01,134.6]
[1741410090670,20.63109692,141.06,141.0,155.23109692]
[1741410090982,20.63109692,141.05,141.0,134.6]
[1741410091371,46.37024578,141.06,141.0,155.23109692]
[1741410092186,39.28074578,141.04,141.0,134.6]
[1741410092360,27.72179692,141.03,141.0,134.6]
[1741410092559,27.72179692,141.03,140.99,7.9647]
[1741410093261,7.0907,141.03,140.99,7.9647]
[1741410093660,27.72139692,141.04,140.99,7.9977]
[1741410094585,20.63109692,141.03,140.99,7.9977]
[1741410094762,20.63109692,141.03,140.99,0.033]
[1741410095892,20.63109692,141.04,140.99,7.1256]
[1741410096073,18.64964886,141.06,141.0,20.63109692]
[1741410096253,18.64964886,141.06,141.01,20.63109692]
[1741410096254,24.90964886,141.06,141.01,20.63109692]
[1741410096459,20.63109692,141.05,140.99,162.35669692]
[1741410096671,27.72079692,141.05,140.99,162.35669692]
[1741410096856,33.98079692,141.05,140.99,162.35669692]
[1741410098708,26.89109692,141.05,140.99,162.35669692]
[1741410098875,6.26,141.05,141.0,20.63109692]
[1741410099286,26.89109692,141.05,140.99,162.35669692]
[1741410099588,33.98079692,141.05,140.99,141.7256]
[1741410099783,33.98079692,141.05,140.99,162.35669692]
[1741410100586,18.64964886,141.04,140.99,27.75669692]
[1741410100889,39.28074578,141.0,140.99,0.033]
[1741410101088,45.54074578,141.0,140.99,0.033]
[1741410101389,38.14252841,141.0,140.99,0.033]
[1741410102286,88.14252841,141.0,140.99,0.033]
[1741410102775,95.23462841,141.0,140.99,0.033]
[1741410103181,45.23462841,141.0,140.99,0.033]
[1741410103384,52.67823383,141.0,140.99,0.033]
[1741410105287,102.67823383,141.0,140.99,0.033]
[1741410105992,52.67823383,141.0,140.99,0.033]
[1741410106604,6.26,141.0,140.99,0.033]
[1741410108294,13.3521,141.0,140.99,0.033]
[1741410108496,52.67823383,141.0,140.99,0.033]
[1741410110079,6.26,141.0,140.99,0.033]
[1741410111274,13.3521,141.0,140.99,0.033]
[1741410112699,34.02858497,141.0,140.99,0.033]
[1741410113814,52.67823383,141.0,140.99,0.033]
[1741410116198,6.26,141.0,140.99,0.033]
[1741410117090,13.3821,141.0,140.99,0.033]
[1741410117287,6.29,141.0,140.99,0.033]
[1741410120213,0.03,141.0,140.99,0.033]
[1741410120705,0.03,141.0,140.99,20.70948497]
[1741410121307,0.03,141.0,140.99,0.033]
[1741410121487,0.03,141.0,140.99,20.70948497]
[1741410122410,0.03,141.0,140.99,27.80218497]
[1741410123415,0.03,141.0,140.99,162.40218497]
[1741410126994,0.03,141.0,140.99,155.30948497]
[1741410127190,0.03,141.0,140.99,147.85350158]
[1741410127818,0.03,141.0,140.99,134.633]
[1741410129526,0.03,141.0,140.99,154.94620158]
[1741410130123,0.03,141.0,140.99,147.85350158]
[1741410130436,0.03,141.0,140.99,134.633]
[1741410131115,0.03,141.0,140.99,147.85350158]
[1741410131322,0.03,141.0,140.99,134.633]
[1741410132236,0.03,141.0,140.99,0.033]
[1741410140130,13.25050158,141.0,140.99,0.033]
[1741410141428,0.03,141.0,140.99,0.033]
[1741410142243,7.1221,141.0,140.99,0.033]
[1741410143353,0.03,141.0,140.99,0.033]
[1741410147129,13.25050158,141.0,140.99,0.033]
[1741410148778,20.34260158,141.0,140.99,0.033]
[1741410150829,7.1221,141.0,140.99,0.033]
[1741410151023,0.03,141.0,140.99,0.033]
[1741410151226,7.1221,141.0,140.99,0.033]
[1741410151747,0.03,141.0,140.99,0.033]
[1741410152325,7.1221,141.0,140.99,0.033]
[1741410152948,0.03,141.0,140.99,0.033]
[1741410155658,0.03,141.0,140.94,19.3602]
[1741410155659,50.0,140.99,140.91,134.6]
[1741410155953,13.22050158,140.95,140.91,134.6]
[1741410156156,13.22050158,140.94,140.91,134.6]
[1741410156332,20.31520158,140.95,140.91,134.6]
[1741410157063,7.0947,140.95,140.91,134.6]
[1741410159831,7.0943,140.96,140.91,134.6]
[1741410160945,7.0943,140.96,140.91,155.2839306]
[1741410161574,27.7782306,140.96,140.91,134.6]
[1741410167459,20.6839306,140.95,140.91,134.6]
[1741410169391,7.0952,140.94,140.91,134.6]
[1741410169892,7.0947,140.95,140.91,155.2839306]
[1741410171873,20.6839306,140.96,140.91,134.6]
[1741410172189,27.7781306,140.96,140.91,134.6]
[1741410174194,7.0952,140.94,140.91,134.6]
[1741410177703,20.33486471,140.94,140.89,136.2472]
[1741410178704,7.0952,140.94,140.89,149.48686471]
[1741410180393,7.0952,140.94,140.9,13.23966471]
[1741410181103,38.98451357,140.94,140.89,1.6472]
[1741410182407,20.33486471,140.94,140.89,1.6472]
[1741410182713,20.33486471,140.94,140.89,14.88686471]
[1741410183219,20.33486471,140.94,140.89,1.6472]
[1741410185506,20.33486471,140.94,140.89,136.2472]
[1741410186536,38.98451357,140.94,140.89,136.2472]
[1741410186687,38.98451357,140.94,140.89,134.6]
[1741410187420,38.98451357,140.94,140.86,1.6428]
[1741410190329,13.23966471,140.9,140.86,136.2428]
[1741410191114,13.23966471,140.91,140.86,136.2428]
[1741410192413,7.0972,140.9,140.86,136.2428]
[1741410193417,13.23966471,140.89,140.86,136.2428]
[1741410194418,20.33786471,140.89,140.86,136.2428]
[1741410195695,20.33786471,140.89,140.86,1.6428]
[1741410196108,20.33786471,140.89,140.84,140.8562]
[1741410196315,13.23966471,140.88,140.84,140.8562]
[1741410197409,20.33786471,140.89,140.84,140.8562]
[1741410198722,13.23966471,140.9,140.84,161.19606471]
[1741410199821,13.23966471,140.91,140.85,13.23966471]
[1741410200015,19.49966471,140.93,140.87,13.23966471]
[1741410200208,13.23966471,140.93,140.87,147.83966471]
[1741410201340,20.33546471,140.93,140.87,154.93816471]
[1741410202322,20.33596471,140.92,140.87,141.6985]
[1741410203393,20.33536471,140.93,140.87,154.93816471]
[1741410203627,13.23966471,140.94,140.88,13.23966471]
[1741410203849,20.33446471,140.95,140.89,13.23966471]
[1741410204127,20.33446471,140.95,140.89,147.83966471]
[1741410205251,20.33446471,140.95,140.89,154.93696471]
[1741410205451,13.23966471,140.95,140.89,160.97836471]
[1741410207057,20.33386471,140.96,140.91,7.0967]
[1741410207240,20.33386471,140.96,140.91,141.6967]
[1741410207446,13.23966471,140.96,140.91,143.2832]
[1741410207645,26.59296471,140.98,140.92,13.23966471]
[1741410207847,0.03,140.99,140.94,19.28106471]
[1741410208049,0.03,140.99,140.94,153.88106471]
[1741410208360,13.26966471,140.99,140.94,153.88106471]
[1741410208860,13.26966471,140.99,140.94,140.6414]
[1741410209039,20.36246471,140.99,140.94,140.6414]
[1741410209241,13.23966471,140.98,140.94,140.6414]
[1741410210442,7.1228,140.99,140.94,140.6414]
[1741410210766,0.03,140.99,140.95,13.23966471]
[1741410211754,0.03,140.99,140.95,154.93396471]
[1741410212257,0.03,140.99,140.96,14.90526471]
[1741410212641,0.03,140.99,140.96,1.6656]
[1741410213837,0.03,140.99,140.96,143.3597]
[1741410214564,0.03,140.99,140.96,156.59936471]
[1741410214770,0.03,140.99,140.96,143.3597]
[1741410215064,0.03,140.99,140.96,136.2656]
[1741410217367,0.03,140.99,140.96,149.50526471]
[1741410218667,0.03,140.99,140.96,156.59936471]
[1741410218888,0.03,140.99,140.96,136.2656]
[1741410222747,0.03,140.99,140.96,156.59936471]
[1741410222947,0.03,140.99,140.97,13.23966471]
[1741410223171,0.03,140.99,140.97,147.83966471]
[1741410224755,0.03,140.99,140.97,154.93316471]
[1741410227076,0.03,140.99,140.97,134.6]
[1741410228756,13.26966471,140.99,140.97,134.6]
[1741410229080,7.0932,140.98,140.96,134.6]
[1741410229266,13.23966471,140.97,140.96,134.6]
[1741410229593,13.23966471,140.97,140.93,0.033]
[1741410229758,13.23966471,140.94,140.93,0.033]
[1741410231295,19.47966471,140.95,140.93,0.033]
[1741410231456,26.57436471,140.95,140.93,0.033]
[1741410234365,19.47966471,140.95,140.93,0.033]
[1741410234982,26.57446471,140.95,140.93,0.033]
[1741410235572,13.23966471,140.94,140.93,0.033]
[1741410236079,20.33486471,140.94,140.93,0.033]
[1741410242799,20.36246471,140.99,140.93,13.27266471]
[1741410242993,7.1228,140.99,140.94,13.23966471]
[1741410243592,20.36246471,140.99,140.93,147.87266471]
[1741410244692,20.36246471,140.99,140.93,154.96826471]
[1741410244890,20.36246471,140.99,140.93,147.87266471]
[1741410245388,13.23966471,140.98,140.93,134.633]
[1741410245882,7.0937,140.97,140.93,134.633]
[1741410246395,13.23966471,140.95,140.93,134.633]
[1741410246581,13.23966471,140.94,140.93,0.033]
[1741410248380,20.33486471,140.94,140.93,0.033]
[1741410250781,7.0952,140.94,140.93,0.033]
[1741410250976,19.47966471,140.96,140.93,0.033]
[1741410251180,6.24,140.96,140.93,0.033]
[1741410251485,13.23966471,140.95,140.93,0.033]
[1741410252301,26.57396471,140.96,140.93,0.033]
[1741410252873,13.23966471,140.95,140.93,0.033]
[1741410254603,20.33456471,140.95,140.93,0.033]
[1741410255487,7.0949,140.95,140.93,0.033]
[1741410257602,20.33456471,140.95,140.93,0.033]
[1741410261205,13.23966471,140.94,140.93,0.033]
[1741410262306,13.23966471,140.94,140.85,134.6]
[1741410262307,18.64964886,140.93,140.85,134.6]
[1741410262488,13.23966471,140.9,140.85,134.6]
[1741410263202,19.47966471,140.91,140.85,134.6]
[1741410263383,19.47966471,140.91,140.85,147.83966471]
[1741410264905,6.24,140.91,140.86,13.23966471]
[1741410265096,6.24,140.91,140.87,13.23966471]
[1741410265297,6.24,140.91,140.88,13.23966471]
[1741410265492,6.24,140.91,140.88,147.83966471]
[1741410265898,20.33536471,140.93,140.88,134.6]
[1741410267514,6.24,140.94,140.88,134.6]
[1741410267515,7.0967,140.91,140.88,134.6]
[1741410267805,20.33636471,140.91,140.88,134.6]
[1741410268013,13.23966471,140.92,140.88,134.6]
[1741410268592,13.23966471,140.91,140.88,134.6]
[1741410268997,13.23966471,140.9,140.88,134.6]
[1741410269307,13.23966471,140.9,140.87,0.033]
[1741410269609,7.0977,140.89,140.87,0.033]
[1741410270007,13.23966471,140.9,140.87,0.033]
[1741410270210,7.0974,140.9,140.87,0.033]
[1741410274203,20.33646471,140.91,140.87,0.033]
[1741410276914,45.22561357,140.92,140.87,0.033]
[1741410277800,6.24,140.92,140.87,13.27266471]
[1741410278116,26.57586471,140.92,140.87,0.033]
[1741410278816,26.57586471,140.92,140.87,134.633]
[1741410279509,26.57586471,140.92,140.87,141.7317]
[1741410279912,26.57586471,140.92,140.87,134.633]
[1741410280422,13.23966471,140.91,140.87,134.633]
[1741410280630,26.57586471,140.92,140.87,134.633]
[1741410281123,13.23966471,140.91,140.87,134.633]
[1741410282228,20.33666471,140.91,140.87,134.633]
[1741410284711,20.33666471,140.91,140.87,0.033]
[1741410289619,6.24,140.92,140.87,0.033]
[1741410289620,26.57586471,140.92,140.87,0.033]
[1741410289815,7.0962,140.92,140.87,13.27266471]
[1741410290035,20.36556471,140.93,140.87,13.27266471]
[1741410290810,20.36556471,140.93,140.87,147.87266471]
[1741410291042,20.36556471,140.93,140.87,134.633]
[1741410291043,13.23966471,140.92,140.87,134.633]
[1741410292038,20.33636471,140.91,140.87,134.633]
[1741410293829,7.0967,140.91,140.87,134.633]
[1741410296555,7.0962,140.92,140.87,134.633]
[1741410296721,13.23966471,140.9,140.87,0.033]
[1741410296923,38.07636471,140.92,140.87,0.033]
[1741410297429,20.33586471,140.92,140.87,0.033]
[1741410297829,7.0962,140.92,140.87,13.27266471]
[1741410298847,7.0962,140.92,140.87,0.033]
[1741410301437,20.33586471,140.92,140.87,0.033]
[1741410302638,20.33586471,140.92,140.87,134.633]
[1741410305548,7.0962,140.92,140.87,134.633]
[1741410306052,20.33586471,140.92,140.87,134.633]
[1741410306237,38.07636471,140.92,140.87,134.633]
[1741410306749,24.8367,140.92,140.87,134.633]
[1741410306941,7.0962,140.92,140.87,134.633]
[1741410307343,20.33586471,140.92,140.87,134.633]
[1741410307854,38.07636471,140.92,140.87,134.633]
[1741410308042,13.23966471,140.91,140.87,134.633]
[1741410308527,13.23966471,140.91,140.87,0.033]
[1741410308724,7.0972,140.9,140.87,0.033]
[1741410309029,13.23966471,140.89,140.87,0.033]
[1741410309427,38.07986471,140.9,140.87,0.033]
[1741410313366,13.23966471,140.89,140.87,0.033]
[1741410313552,31.88931357,140.88,140.87,0.033]
[1741410314446,18.64964886,140.88,140.87,0.033]
[1741410315035,25.74784886,140.88,140.87,0.033]
[1741410315664,13.3379,140.89,140.87,0.033]
[1741410316228,6.24,140.89,140.87,0.033]
[1741410316455,20.33586471,140.92,140.87,13.27266471]
[1741410316940,20.33586471,140.92,140.87,0.033]
[1741410317146,13.23966471,140.9,140.87,0.033]
[1741410317755,31.88931357,140.91,140.87,0.033]
[1741410319365,7.0972,140.9,140.87,0.033]
[1741410320762,25.74654886,140.91,140.87,0.033]
[1741410321547,38.98621357,140.91,140.87,0.033]
[1741410324971,13.23966471,140.9,140.87,0.033]
[1741410325268,7.0977,140.89,140.87,0.033]
[1741410326773,31.88931357,140.88,140.87,0.033]
[1741410326978,38.98751357,140.88,140.87,0.033]
[1741410327182,45.22751357,140.88,140.87,0.033]
[1741410332281,48.74232163,140.88,140.87,0.033]
[1741410333186,98.74232163,140.88,140.87,0.033]
[1741410333885,98.74232163,140.88,140.87,0.0001]
[1741410336386,48.74232163,140.88,140.87,0.0001]
[1741410340880,30.09267277,140.88,140.87,0.0001]
[1741410341279,26.57786471,140.88,140.87,0.0001]
[1741410341586,6.24,140.88,140.87,0.0001]
[1741410341885,13.3382,140.88,140.87,0.0001]
[1741410342084,20.33786471,140.88,140.87,0.0001]
[1741410346291,13.23966471,140.88,140.87,0.0001]
[1741410347463,20.33786471,140.88,140.87,0.0001]
[1741410355401,26.59786471,140.88,140.87,0.0001]
[1741410364822,26.62786471,140.88,140.87,0.0001]
[1741410366020,45.27751357,140.88,140.87,0.0001]
[1741410368002,45.27751357,140.88,140.78,0.033]
[1741410368003,50.0,140.83,140.78,0.033]
[1741410368218,6.24,140.82,140.78,0.033]
[1741410369923,6.24,140.82,140.78,7.1362]
[1741410370128,6.24,140.82,140.78,154.97586471]
[1741410370428,6.24,140.82,140.79,12.73966471]
[1741410370927,20.33946471,140.85,140.79,12.73966471]
[1741410372837,13.23966471,140.83,140.78,147.87266471]
[1741410373324,20.33996471,140.84,140.79,13.23966471]
[1741410373511,7.1003,140.84,140.79,13.23966471]
[1741410373709,20.33946471,140.85,140.79,13.23966471]
[1741410373903,7.0998,140.85,140.79,147.83966471]
[1741410374222,20.33946471,140.85,140.79,147.83966471]
[1741410374917,20.33946471,140.85,140.79,154.94206471]
[1741410375401,13.23966471,140.84,140.79,141.7024]
[1741410375921,20.33996471,140.84,140.79,141.7024]
[1741410379918,6.24,140.85,140.79,154.94206471]
[1741410380222,26.57956471,140.85,140.79,154.94206471]
[1741410382806,26.57956471,140.85,140.79,147.83966471]
[1741410383004,13.23966471,140.84,140.79,147.83966471]
[1741410383699,13.23966471,140.84,140.79,154.94216471]
[1741410383904,26.57956471,140.85,140.79,154.94216471]
[1741410387425,26.57956471,140.85,140.79,147.83966471]
[1741410387823,13.23966471,140.84,140.79,147.83966471]
[1741410388929,13.23966471,140.84,140.79,134.6]
[1741410389129,13.23966471,140.82,140.79,134.6]
[1741410389316,13.23966471,140.83,140.79,134.6]
[1741410389505,7.1012,140.82,140.79,134.6]
[1741410389907,13.23966471,140.81,140.79,134.6]
[1741410390125,13.23966471,140.8,140.78,0.033]
[1741410390715,13.23966471,140.79,140.78,0.033]
[1741410391535,88.99201357,140.79,140.78,0.0001]
[1741410391728,18.64964886,140.78,140.73,1.6589]
[1741410392009,13.23966471,140.76,140.73,1.6589]
[1741410392819,13.23966471,140.77,140.73,1.6589]
[1741410395931,13.23966471,140.76,140.7,142.568]
[1741410396122,13.23966471,140.76,140.7,155.80766471]
[1741410396638,13.23966471,140.76,140.7,162.91486471]
[1741410398437,16.84973137,140.78,140.72,13.23966471]
[1741410398748,16.84973137,140.78,140.72,12.73966471]
[1741410399233,13.23966471,140.78,140.73,13.23966471]
[1741410399419,19.49966471,140.79,140.73,13.23966471]
[1741410399621,19.49966471,140.79,140.74,13.23966471]
[1741410399836,19.49966471,140.79,140.74,20.34476471]
[1741410400231,19.49966471,140.8,140.74,154.94476471]
[1741410400442,0.03,140.78,140.74,154.94476471]
[1741410401465,0.03,140.78,140.75,13.23966471]
[1741410401670,0.03,140.78,140.77,20.34336471]
[1741410401966,0.03,140.78,140.77,154.94336471]
[1741410407361,0.03,140.78,140.77,134.6]
[1741410410647,0.03,140.78,140.75,13.23966471]
[1741410415563,0.03,140.78,140.76,13.23966471]
[1741410416660,0.03,140.78,140.76,7.1041]
[1741410416849,0.03,140.78,140.77,13.23966471]
[1741410419168,0.03,140.78,140.77,20.34336471]
[1741410421462,0.03,140.78,140.77,154.94336471]
[1741410422966,0.03,140.78,140.77,147.83966471]
[1741410424351,13.26966471,140.78,140.72,147.87266471]
[1741410424551,13.23966471,140.77,140.72,134.633]
[1741410425348,18.67964886,140.78,140.72,134.633]
[1741410425555,13.23966471,140.77,140.72,134.633]
[1741410425867,13.23966471,140.77,140.72,147.87266471]
[1741410426268,7.1334,140.78,140.73,13.23966471]
[1741410426668,13.23966471,140.76,140.72,134.633]
[1741410426972,13.23966471,140.76,140.72,0.033]
[1741410428386,7.1047,140.75,140.72,0.033]
[1741410430083,19.47966471,140.75,140.72,0.033]
[1741410430683,6.24,140.75,140.72,0.033]
[1741410431366,7.1053,140.74,140.72,0.033]
[1741410436881,6.27,140.78,140.73,13.23966471]
[1741410437058,6.27,140.78,140.75,13.23966471]
[1741410437458,0.03,140.78,140.76,13.23966471]
[1741410437772,0.03,140.78,140.77,13.23966471]
[1741410438571,0.03,140.78,140.76,147.83966471]
[1741410439057,0.03,140.78,140.76,134.6]
[1741410440192,0.03,140.78,140.77,13.23966471]
[1741410441198,0.03,140.78,140.77,20.34336471]
[1741410441785,0.03,140.78,140.77,154.94336471]
[1741410443400,0.03,140.78,140.77,147.83966471]
[1741410444702,0.03,140.78,140.77,154.94336471]
[1741410447592,0.03,140.78,140.77,226.55167241]
[1741410448776,0.03,140.85,140.8,134.57]
[1741410449075,0.03,140.85,140.84,13.23966471]
[1741410449280,0.03,140.85,140.83,13.23966471]
[1741410450177,0.03,140.85,140.84,13.23966471]
[1741410451107,0.03,140.85,140.84,147.80966471]
[1741410451407,0.03,140.85,140.84,219.41797241]
[1741410452204,0.03,140.85,140.84,226.51817241]
[1741410452875,0.03,140.88,140.84,244.26877241]
[1741410453194,0.03,140.88,140.87,13.23966471]
[1741410453398,0.03,140.88,140.87,147.80966471]
[1741410454697,0.03,140.88,140.87,13.23966471]
[1741410454902,0.03,140.88,140.86,13.23966471]
[1741410455216,0.03,140.88,140.85,13.23966471]
[1741410455380,13.26966471,140.88,140.83,134.57]
[1741410455583,13.23966471,140.87,140.81,154.04966471]
[1741410455890,0.03,140.88,140.82,13.23966471]
[1741410455891,13.26966471,140.88,140.82,13.23966471]
[1741410456502,7.0987,140.87,140.82,13.23966471]
[1741410456813,7.0987,140.87,140.83,13.23966471]
[1741410458182,7.1282,140.88,140.83,13.23966471]
[1741410459489,20.36786471,140.88,140.82,13.23966471]
[1741410459704,13.23966471,140.87,140.81,147.80966471]
[1741410460217,7.0992,140.86,140.81,147.80966471]
[1741410460379,20.33886471,140.86,140.81,134.57]
[1741410461018,7.0992,140.86,140.81,147.84266471]
[1741410461406,7.0992,140.86,140.81,155.31319973]
[1741410462712,27.80939973,140.86,140.81,134.603]
[1741410465914,27.80939973,140.86,140.81,0.033]
[1741410466415,20.71019973,140.85,140.81,0.033]
[1741410467627,7.1002,140.84,140.81,0.033]
[1741410468623,20.71019973,140.83,140.81,0.033]
[1741410469622,20.71019973,140.82,140.81,0.0001]
[1741410469811,39.35984859,140.82,140.81,0.0001]
[1741410471029,52.97954859,140.82,140.81,0.0001]
[1741410472135,6.5185,140.82,140.81,0.0001]
[1741410473227,34.32989973,140.82,140.81,0.0001]
[1741410474028,20.71019973,140.83,140.81,0.0001]
[1741410474226,26.95019973,140.84,140.81,0.0001]
[1741410475736,34.05059973,140.84,140.81,0.0001]
[1741410477846,27.81059973,140.84,140.81,0.0001]
[1741410481219,20.71019973,140.84,140.81,0.0001]
[1741410481421,27.81049973,140.84,140.81,0.0001]
[1741410481815,30.52959526,140.85,140.81,0.0001]
[1741410482147,0.03,140.85,140.81,0.0001]
[1741410486951,13.25650168,140.84,140.81,0.0001]
[1741410488055,7.1002,140.84,140.81,0.0001]
[1741410490562,13.25650168,140.82,140.76,1.615]
[1741410490863,13.25650168,140.81,140.75,134.57]
[1741410491935,13.25650168,140.8,140.74,147.82650168]
[1741410492442,7.1027,140.79,140.74,147.82650168]
[1741410492642,7.1027,140.79,140.74,13.25650168]
[1741410493258,20.35920168,140.79,140.74,13.25650168]